[Event "Titled Tuesday Blitz August 22 Early 2023"]
[White "Demchenko, Anton"]
[Black "Ganiev, Roman"]
[WhiteFideId "4160258"]
[BlackFideId "4131452"]
[WhiteElo "2923"]
[BlackElo "2578"]
[Result "1-0"]
[Round "2"]
[TimeControl "180+1"]
[Date "2023.08.22"]
[WhiteClock "0:00:07"]
[BlackClock "0:00:02"]
[Board "31"]

1. e4 {[%clk 0:02:59]}  c5 {[%clk 0:02:51]} 2. Nf3 {[%clk 0:02:59]}  d6 {[%clk 0:02:51]} 3. d4 {[%clk 0:03:00]}  cxd4 {[%clk 0:02:51]} 4. Nxd4 {[%clk 0:03:00]}  Nf6 {[%clk 0:02:52]} 5. Nc3 {[%clk 0:03:00]}  a6 {[%clk 0:02:52]} 6. Be2 {[%clk 0:03:01]}  e5 {[%clk 0:02:52]} 7. Nb3 {[%clk 0:03:01]}  Be7 {[%clk 0:02:53]} 8. O-O {[%clk 0:03:02]}  O-O {[%clk 0:02:53]} 9. Be3 {[%clk 0:02:59]}  Be6 {[%clk 0:02:53]} 10. Bf3 {[%clk 0:02:58]}  Nbd7 {[%clk 0:02:50]} 11. a4 {[%clk 0:02:58]}  Rc8 {[%clk 0:02:50]} 12. Re1 {[%clk 0:02:58]}  Nb6 {[%clk 0:02:13]} 13. Nd2 {[%clk 0:02:56]}  Nc4 {[%clk 0:02:05]} 14. Nxc4 {[%clk 0:02:56]}  Bxc4 {[%clk 0:02:06]} 15. a5 {[%clk 0:02:57]}  Rc6 {[%clk 0:01:50]} 16. Bb6 {[%clk 0:02:25]}  Qc8 {[%clk 0:01:41]} 17. h3 {[%clk 0:02:18]}  Bd8 {[%clk 0:01:35]} 18. Be3 {[%clk 0:02:17]}  Be6 {[%clk 0:00:55]} 19. Qd2 {[%clk 0:02:08]}  h6 {[%clk 0:00:47]} 20. Rec1 {[%clk 0:02:08]}  b5 {[%clk 0:00:39]} 21. axb6 {[%clk 0:02:06]}  Bxb6 {[%clk 0:00:39]} 22. Bxb6 {[%clk 0:01:57]}  Rxb6 {[%clk 0:00:39]} 23. b3 {[%clk 0:01:58]}  Rd8 {[%clk 0:00:28]} 24. Ra5 {[%clk 0:01:42]}  Rc6 {[%clk 0:00:20]} 25. Nd5 {[%clk 0:01:42]}  Bxd5 {[%clk 0:00:19]} 26. exd5 {[%clk 0:01:43]}  Rc5 {[%clk 0:00:20]} 27. Rca1 {[%clk 0:01:38]}  Rxc2 {[%clk 0:00:20]} 28. Qe3 {[%clk 0:01:14]}  Rc3 {[%clk 0:00:20]} 29. Qb6 {[%clk 0:01:14]}  Rc1+ {[%clk 0:00:15]} 30. Kh2 {[%clk 0:01:11]}  Rxa1 {[%clk 0:00:11]} 31. Rxa1 {[%clk 0:01:12]}  e4 {[%clk 0:00:12]} 32. Be2 {[%clk 0:01:11]}  Nxd5 {[%clk 0:00:11]} 33. Qd4 {[%clk 0:01:09]}  Qe6 {[%clk 0:00:10]} 34. Bc4 {[%clk 0:01:08]}  Qf6 {[%clk 0:00:08]} 35. Qxf6 {[%clk 0:00:35]}  Nxf6 {[%clk 0:00:09]} 36. Rxa6 {[%clk 0:00:35]}  d5 {[%clk 0:00:09]} 37. Be2 {[%clk 0:00:35]}  Rb8 {[%clk 0:00:09]} 38. Ra3 {[%clk 0:00:33]}  d4 {[%clk 0:00:10]} 39. Bc4 {[%clk 0:00:33]}  Rb7 {[%clk 0:00:08]} 40. Kg3 {[%clk 0:00:31]}  g5 {[%clk 0:00:08]} 41. Ra8+ {[%clk 0:00:29]}  Kg7 {[%clk 0:00:08]} 42. Ra1 {[%clk 0:00:22]}  Nh5+ {[%clk 0:00:08]} 43. Kh2 {[%clk 0:00:21]}  Nf4 {[%clk 0:00:09]} 44. g3 {[%clk 0:00:21]}  Ne6 {[%clk 0:00:05]} 45. Rd1 {[%clk 0:00:20]}  d3 {[%clk 0:00:05]} 46. f3 {[%clk 0:00:15]}  exf3 {[%clk 0:00:02]} 47. Rxd3 {[%clk 0:00:15]}  f2 {[%clk 0:00:02]} 48. Kg2 {[%clk 0:00:16]}  Nc5 {[%clk 0:00:02]} 49. Re3 {[%clk 0:00:14]}  f5 {[%clk 0:00:02]} 50. Kxf2 {[%clk 0:00:14]}  Ne4+ {[%clk 0:00:03]} 51. Ke1 {[%clk 0:00:13]}  Kf6 {[%clk 0:00:03]} 52. g4 {[%clk 0:00:13]}  Ke5 {[%clk 0:00:03]} 53. gxf5 {[%clk 0:00:14]}  Kd4 {[%clk 0:00:04]} 54. Rd3+ {[%clk 0:00:14]}  Ke5 {[%clk 0:00:04]} 55. Rd5+ {[%clk 0:00:14]}  Kf4 {[%clk 0:00:04]} 56. Ra5 {[%clk 0:00:09]}  Re7 {[%clk 0:00:05]} 57. Kd1 {[%clk 0:00:08]}  Nf6 {[%clk 0:00:04]} 58. Be6 {[%clk 0:00:08]}  Ne4 {[%clk 0:00:03]} 59. b4 {[%clk 0:00:08]}  Rb7 {[%clk 0:00:03]} 60. f6 {[%clk 0:00:03]}  Nxf6 {[%clk 0:00:03]} 61. Rf5+ {[%clk 0:00:04]}  Kg3 {[%clk 0:00:03]} 62. Rxf6 {[%clk 0:00:05]}  Rxb4 {[%clk 0:00:03]} 63. Rxh6 {[%clk 0:00:05]}  Rh4 {[%clk 0:00:02]} 64. Rg6 {[%clk 0:00:05]}  Kf4 {[%clk 0:00:03]} 65. Bg4 {[%clk 0:00:04]}  Rh7 {[%clk 0:00:02]} 66. Ke2 {[%clk 0:00:05]}  Rc7 {[%clk 0:00:02]} 67. Kf1 {[%clk 0:00:05]}  Ra7 {[%clk 0:00:03]} 68. Re6 {[%clk 0:00:05]}  Ra1+ {[%clk 0:00:03]} 69. Re1 {[%clk 0:00:06]}  Ra2 {[%clk 0:00:04]} 70. Re2 {[%clk 0:00:06]}  Ra1+ {[%clk 0:00:04]} 71. Kf2 {[%clk 0:00:06]}  Ra3 {[%clk 0:00:04]} 72. Rb2 {[%clk 0:00:06]}  Ra4 {[%clk 0:00:04]} 73. Rc2 {[%clk 0:00:06]}  Ra3 {[%clk 0:00:04]} 74. Kg2 {[%clk 0:00:07]}  Ke5 {[%clk 0:00:04]} 75. Rf2 {[%clk 0:00:08]}  Ra2 {[%clk 0:00:02]} 76. Rxa2 {[%clk 0:00:07]} 1-0


[Site "https://www.chess.com"]

[Event "Titled Tuesday Blitz August 22 Early 2023"]
[White "Shukhman, Anna"]
[Black "Rasulov, Vugar"]
[WhiteFideId "54180058"]
[BlackFideId "13402390"]
[WhiteElo "2565"]
[BlackElo "2885"]
[Result "0-1"]
[Round "2"]
[TimeControl "180+1"]
[Date "2023.08.22"]
[WhiteClock "0:02:40"]
[BlackClock "0:02:07"]
[Board "40"]

1. e4 {[%clk 0:03:00]}  c5 {[%clk 0:02:59]} 2. Nf3 {[%clk 0:03:00]}  d6 {[%clk 0:02:59]} 3. d4 {[%clk 0:03:00]}  cxd4 {[%clk 0:03:00]} 4. Nxd4 {[%clk 0:03:01]}  Nf6 {[%clk 0:03:01]} 5. Nc3 {[%clk 0:03:01]}  a6 {[%clk 0:03:01]} 6. Qd3 {[%clk 0:03:01]}  g6 {[%clk 0:02:58]} 7. Bg5 {[%clk 0:02:59]}  Bg7 {[%clk 0:02:58]} 8. O-O-O {[%clk 0:02:58]}  O-O {[%clk 0:02:57]} 9. f4 {[%clk 0:02:58]}  Nbd7 {[%clk 0:02:49]} 10. h4 {[%clk 0:02:57]}  Nc5 {[%clk 0:02:47]} 11. Qe3 {[%clk 0:02:57]}  Ng4 {[%clk 0:02:45]} 12. Qg1 {[%clk 0:02:56]}  h6 {[%clk 0:02:45]} 13. Be2 {[%clk 0:02:55]}  hxg5 {[%clk 0:02:39]} 14. hxg5 {[%clk 0:02:55]}  Qa5 {[%clk 0:02:36]} 15. Bxg4 {[%clk 0:02:52]}  Bxg4 {[%clk 0:02:37]} 16. Qh2 {[%clk 0:02:52]}  Rfc8 {[%clk 0:02:30]} 17. Nd5 {[%clk 0:02:51]}  Qxa2 {[%clk 0:02:23]} 18. Nxe7+ {[%clk 0:02:50]}  Kf8 {[%clk 0:02:23]} 19. Nxc8 {[%clk 0:02:50]}  Rxc8 {[%clk 0:02:24]} 20. f5 {[%clk 0:02:43]}  Bxd4 {[%clk 0:02:07]} 21. Qxd6+ {[%clk 0:02:42]}  Kg8 {[%clk 0:02:06]} 22. Rxd4 {[%clk 0:02:40]}  Nb3# {[%clk 0:02:07]} 0-1


[Site "https://www.chess.com"]

[Event "Titled Tuesday Blitz August 22 Early 2023"]
[White "Ibadov, Dashgyn"]
[Black "Jones, Gawain C B"]
[WhiteFideId "24107514"]
[BlackFideId "409561"]
[WhiteElo "2564"]
[BlackElo "2878"]
[Result "1-0"]
[Round "2"]
[TimeControl "180+1"]
[Date "2023.08.22"]
[WhiteClock "0:00:15"]
[BlackClock "0:00:01"]
[Board "41"]

1. e4 {[%clk 0:03:00]}  e5 {[%clk 0:03:00]} 2. Nf3 {[%clk 0:02:59]}  Nc6 {[%clk 0:03:00]} 3. d4 {[%clk 0:03:00]}  exd4 {[%clk 0:03:00]} 4. Nxd4 {[%clk 0:03:01]}  Nf6 {[%clk 0:03:01]} 5. Nxc6 {[%clk 0:03:01]}  bxc6 {[%clk 0:03:01]} 6. e5 {[%clk 0:03:02]}  Qe7 {[%clk 0:03:02]} 7. Qe2 {[%clk 0:03:03]}  Nd5 {[%clk 0:03:02]} 8. c4 {[%clk 0:03:03]}  Ba6 {[%clk 0:03:03]} 9. b3 {[%clk 0:03:04]}  g6 {[%clk 0:03:01]} 10. g3 {[%clk 0:03:04]}  Bg7 {[%clk 0:03:00]} 11. Bb2 {[%clk 0:03:05]}  O-O {[%clk 0:03:00]} 12. Bg2 {[%clk 0:03:05]}  Rae8 {[%clk 0:03:00]} 13. O-O {[%clk 0:03:06]}  Bxe5 {[%clk 0:03:01]} 14. Qxe5 {[%clk 0:03:07]}  Qxe5 {[%clk 0:03:01]} 15. Bxe5 {[%clk 0:03:07]}  Rxe5 {[%clk 0:03:02]} 16. cxd5 {[%clk 0:03:07]}  Bxf1 {[%clk 0:03:03]} 17. Kxf1 {[%clk 0:03:08]}  cxd5 {[%clk 0:03:04]} 18. Nc3 {[%clk 0:03:09]}  c6 {[%clk 0:03:04]} 19. Rd1 {[%clk 0:03:09]}  Rb8 {[%clk 0:03:03]} 20. Na4 {[%clk 0:03:05]}  Kf8 {[%clk 0:03:01]} 21. Nc5 {[%clk 0:03:03]}  Re7 {[%clk 0:03:00]} 22. Nd3 {[%clk 0:02:53]}  Ke8 {[%clk 0:02:58]} 23. b4 {[%clk 0:02:52]}  Kd8 {[%clk 0:02:52]} 24. a3 {[%clk 0:02:50]}  Kc7 {[%clk 0:02:52]} 25. Rc1 {[%clk 0:02:49]}  Kd6 {[%clk 0:02:47]} 26. Rc5 {[%clk 0:02:48]}  Rbe8 {[%clk 0:02:39]} 27. Bf3 {[%clk 0:02:46]}  f5 {[%clk 0:02:18]} 28. Ra5 {[%clk 0:02:45]}  Ra8 {[%clk 0:02:19]} 29. Nc5 {[%clk 0:02:45]}  Ke5 {[%clk 0:02:12]} 30. Ke2 {[%clk 0:02:37]}  d6 {[%clk 0:02:08]} 31. Nd3+ {[%clk 0:02:24]}  Kd4+ {[%clk 0:02:08]} 32. Kd2 {[%clk 0:02:24]}  g5 {[%clk 0:02:01]} 33. Ra6 {[%clk 0:01:55]}  Rc8 {[%clk 0:01:48]} 34. b5 {[%clk 0:01:52]}  cxb5 {[%clk 0:01:42]} 35. Rxd6 {[%clk 0:01:51]}  Rce8 {[%clk 0:01:01]} 36. Rxd5+ {[%clk 0:01:44]}  Kc4 {[%clk 0:01:02]} 37. Rxf5 {[%clk 0:01:12]}  Rd8 {[%clk 0:00:53]} 38. Rc5+ {[%clk 0:01:11]}  Kb3 {[%clk 0:00:52]} 39. Rc3+ {[%clk 0:01:02]}  Ka4 {[%clk 0:00:49]} 40. Kc2 {[%clk 0:01:01]}  Ka5 {[%clk 0:00:44]} 41. Nb4 {[%clk 0:00:58]}  Rde8 {[%clk 0:00:30]} 42. Nc6+ {[%clk 0:00:58]}  Ka4 {[%clk 0:00:30]} 43. Nxe7 {[%clk 0:00:55]}  Rxe7 {[%clk 0:00:31]} 44. Bd1 {[%clk 0:00:37]}  Rf7 {[%clk 0:00:14]} 45. Kb2+ {[%clk 0:00:36]}  Ka5 {[%clk 0:00:14]} 46. f3 {[%clk 0:00:34]}  Rd7 {[%clk 0:00:14]} 47. Bc2 {[%clk 0:00:30]}  Rd2 {[%clk 0:00:13]} 48. Rc5 {[%clk 0:00:28]}  h6 {[%clk 0:00:11]} 49. h4 {[%clk 0:00:24]}  gxh4 {[%clk 0:00:09]} 50. gxh4 {[%clk 0:00:25]}  Rf2 {[%clk 0:00:08]} 51. Rf5 {[%clk 0:00:23]}  a6 {[%clk 0:00:05]} 52. Kc3 {[%clk 0:00:21]}  Kb6 {[%clk 0:00:04]} 53. Be4 {[%clk 0:00:19]}  Ka5 {[%clk 0:00:02]} 54. Rf6 {[%clk 0:00:17]}  h5 {[%clk 0:00:02]} 55. Rh6 {[%clk 0:00:16]}  Re2 {[%clk 0:00:02]} 56. Bb7 {[%clk 0:00:13]}  Re3+ {[%clk 0:00:01]} 57. Kd4 {[%clk 0:00:13]}  Rxa3 {[%clk 0:00:01]} 58. Rxa6+ {[%clk 0:00:14]}  Kb4 {[%clk 0:00:02]} 59. Rxa3 {[%clk 0:00:15]}  Kxa3 {[%clk 0:00:03]} 60. f4 {[%clk 0:00:15]}  b4 {[%clk 0:00:03]} 61. Bd5 {[%clk 0:00:15]}  Ka4 {[%clk 0:00:01]} 62. f5 {[%clk 0:00:15]} 1-0


[Site "https://www.chess.com"]

[Event "Titled Tuesday Blitz August 22 Early 2023"]
[White "Principe, Gerson"]
[Black "Galchenko, Matvey"]
[WhiteFideId "3804550"]
[BlackFideId "24175480"]
[WhiteElo "2561"]
[BlackElo "2865"]
[Result "1-0"]
[Round "2"]
[TimeControl "180+1"]
[Date "2023.08.22"]
[WhiteClock "0:00:10"]
[BlackClock "0:00:01"]
[Board "44"]

1. d4 {[%clk 0:03:00]}  Nf6 {[%clk 0:02:56]} 2. Nf3 {[%clk 0:03:00]}  c5 {[%clk 0:02:57]} 3. e3 {[%clk 0:03:00]}  g6 {[%clk 0:02:56]} 4. Be2 {[%clk 0:02:59]}  Bg7 {[%clk 0:02:57]} 5. O-O {[%clk 0:02:59]}  cxd4 {[%clk 0:02:57]} 6. exd4 {[%clk 0:02:59]}  O-O {[%clk 0:02:58]} 7. c3 {[%clk 0:02:58]}  d6 {[%clk 0:02:58]} 8. Bg5 {[%clk 0:02:46]}  Nc6 {[%clk 0:02:58]} 9. Nbd2 {[%clk 0:02:43]}  Qc7 {[%clk 0:02:55]} 10. Re1 {[%clk 0:02:30]}  h6 {[%clk 0:02:45]} 11. Bh4 {[%clk 0:02:28]}  g5 {[%clk 0:02:45]} 12. Bg3 {[%clk 0:02:28]}  Nh5 {[%clk 0:02:46]} 13. d5 {[%clk 0:02:02]}  Nxg3 {[%clk 0:02:20]} 14. hxg3 {[%clk 0:01:57]}  Nb8 {[%clk 0:02:13]} 15. Nd4 {[%clk 0:01:50]}  Na6 {[%clk 0:01:56]} 16. Bg4 {[%clk 0:01:42]}  Nc5 {[%clk 0:01:50]} 17. Bxc8 {[%clk 0:01:39]}  Raxc8 {[%clk 0:01:47]} 18. Nf5 {[%clk 0:01:38]}  Rce8 {[%clk 0:01:13]} 19. Qh5 {[%clk 0:01:32]}  e6 {[%clk 0:00:37]} 20. Nxh6+ {[%clk 0:01:23]}  Bxh6 {[%clk 0:00:38]} 21. Qxh6 {[%clk 0:01:24]}  f6 {[%clk 0:00:38]} 22. dxe6 {[%clk 0:01:19]}  Qg7 {[%clk 0:00:32]} 23. Qh5 {[%clk 0:01:11]}  Rxe6 {[%clk 0:00:30]} 24. Rxe6 {[%clk 0:01:09]}  Nxe6 {[%clk 0:00:31]} 25. Re1 {[%clk 0:01:09]}  Qf7 {[%clk 0:00:28]} 26. Qf3 {[%clk 0:01:02]}  Nc5 {[%clk 0:00:27]} 27. Qe3 {[%clk 0:00:59]}  Qxa2 {[%clk 0:00:26]} 28. b4 {[%clk 0:00:58]}  Nd7 {[%clk 0:00:26]} 29. Ne4 {[%clk 0:00:44]}  Qe6 {[%clk 0:00:18]} 30. Qd2 {[%clk 0:00:33]}  Ne5 {[%clk 0:00:15]} 31. Qxd6 {[%clk 0:00:30]}  Qxd6 {[%clk 0:00:14]} 32. Nxd6 {[%clk 0:00:31]}  b6 {[%clk 0:00:13]} 33. Ra1 {[%clk 0:00:30]}  Rd8 {[%clk 0:00:12]} 34. Ne4 {[%clk 0:00:28]}  Kf7 {[%clk 0:00:09]} 35. Rxa7+ {[%clk 0:00:27]}  Kg6 {[%clk 0:00:09]} 36. Ra1 {[%clk 0:00:22]}  f5 {[%clk 0:00:09]} 37. f4 {[%clk 0:00:19]}  gxf4 {[%clk 0:00:07]} 38. gxf4 {[%clk 0:00:18]}  Nd3 {[%clk 0:00:06]} 39. Nf2 {[%clk 0:00:17]}  Nxf4 {[%clk 0:00:07]} 40. c4 {[%clk 0:00:17]}  Rd4 {[%clk 0:00:07]} 41. c5 {[%clk 0:00:17]}  Rxb4 {[%clk 0:00:06]} 42. cxb6 {[%clk 0:00:16]}  Rxb6 {[%clk 0:00:07]} 43. Nh3 {[%clk 0:00:16]}  Ne2+ {[%clk 0:00:06]} 44. Kh2 {[%clk 0:00:15]}  Rb2 {[%clk 0:00:06]} 45. Rf1 {[%clk 0:00:15]}  Kf6 {[%clk 0:00:03]} 46. Nf4 {[%clk 0:00:15]}  Nd4 {[%clk 0:00:03]} 47. Nd5+ {[%clk 0:00:16]}  Kg5 {[%clk 0:00:03]} 48. Nf4 {[%clk 0:00:15]}  Kg4 {[%clk 0:00:02]} 49. Nh3 {[%clk 0:00:15]}  Ne6 {[%clk 0:00:02]} 50. Nf2+ {[%clk 0:00:14]}  Kg5 {[%clk 0:00:01]} 51. Nd3 {[%clk 0:00:15]}  Rd2 {[%clk 0:00:01]} 52. Ne5 {[%clk 0:00:15]}  Nd4 {[%clk 0:00:01]} 53. Nf7+ {[%clk 0:00:15]}  Kf6 {[%clk 0:00:02]} 54. Nd6 {[%clk 0:00:14]}  Ke6 {[%clk 0:00:01]} 55. Nc4 {[%clk 0:00:14]}  Ra2 {[%clk 0:00:02]} 56. Ne3 {[%clk 0:00:14]}  Kf6 {[%clk 0:00:02]} 57. Nd5+ {[%clk 0:00:14]}  Kg5 {[%clk 0:00:03]} 58. Nf4 {[%clk 0:00:15]}  Kg4 {[%clk 0:00:03]} 59. Nh3 {[%clk 0:00:15]}  Ne6 {[%clk 0:00:03]} 60. Nf2+ {[%clk 0:00:13]}  Kg5 {[%clk 0:00:03]} 61. Nd3 {[%clk 0:00:13]}  Kg4 {[%clk 0:00:04]} 62. Ne5+ {[%clk 0:00:13]}  Kg5 {[%clk 0:00:04]} 63. Nf3+ {[%clk 0:00:14]}  Kg4 {[%clk 0:00:04]} 64. Ne5+ {[%clk 0:00:13]}  Kg5 {[%clk 0:00:05]} 65. Nd3 {[%clk 0:00:10]}  f4 {[%clk 0:00:03]} 66. Ne5 {[%clk 0:00:09]}  Kf5 {[%clk 0:00:03]} 67. Nf3 {[%clk 0:00:09]}  Kg4 {[%clk 0:00:02]} 68. Re1 {[%clk 0:00:09]}  Ra6 {[%clk 0:00:01]} 69. Re5 {[%clk 0:00:09]}  Rb6 {[%clk 0:00:02]} 70. Rd5 {[%clk 0:00:08]}  Ra6 {[%clk 0:00:02]} 71. Re5 {[%clk 0:00:08]}  Rb6 {[%clk 0:00:02]} 72. Ra5 {[%clk 0:00:09]}  Rc6 {[%clk 0:00:03]} 73. Ne5+ {[%clk 0:00:09]}  Kf5 {[%clk 0:00:03]} 74. Nxc6+ {[%clk 0:00:10]}  Kg4 {[%clk 0:00:04]} 75. Ne5+ {[%clk 0:00:09]}  Kf5 {[%clk 0:00:04]} 76. Nf3+ {[%clk 0:00:10]}  Kg4 {[%clk 0:00:05]} 77. Re5 {[%clk 0:00:10]}  Nc5 {[%clk 0:00:01]} 78. Rg5# {[%clk 0:00:10]} 1-0


[Site "https://www.chess.com"]

[Event "Titled Tuesday Blitz August 22 Early 2023"]
[White "Ilkhomi, Jaloliddin"]
[Black "Molina, Roberto Junio Brito"]
[WhiteFideId "14700948"]
[BlackFideId "2109450"]
[WhiteElo "2557"]
[BlackElo "2860"]
[Result "0-1"]
[Round "2"]
[TimeControl "180+1"]
[Date "2023.08.22"]
[WhiteClock "0:00:02"]
[BlackClock "0:00:11"]
[Board "48"]

1. d4 {[%clk 0:02:59]}  d5 {[%clk 0:02:59]} 2. Nf3 {[%clk 0:02:59]}  Nf6 {[%clk 0:02:58]} 3. Bf4 {[%clk 0:03:00]}  e6 {[%clk 0:02:52]} 4. e3 {[%clk 0:03:00]}  Bd6 {[%clk 0:02:51]} 5. Bg3 {[%clk 0:02:57]}  Qe7 {[%clk 0:02:49]} 6. Nbd2 {[%clk 0:02:57]}  Bxg3 {[%clk 0:02:45]} 7. hxg3 {[%clk 0:02:56]}  Nbd7 {[%clk 0:02:44]} 8. c4 {[%clk 0:02:56]}  O-O {[%clk 0:02:28]} 9. Bd3 {[%clk 0:02:53]}  c5 {[%clk 0:02:23]} 10. Ne5 {[%clk 0:02:43]}  h6 {[%clk 0:02:09]} 11. cxd5 {[%clk 0:02:30]}  exd5 {[%clk 0:02:08]} 12. Nxd7 {[%clk 0:02:30]}  Bxd7 {[%clk 0:02:08]} 13. dxc5 {[%clk 0:02:31]}  Qxc5 {[%clk 0:02:07]} 14. Rc1 {[%clk 0:02:28]}  Qa5 {[%clk 0:02:02]} 15. O-O {[%clk 0:02:24]}  Rac8 {[%clk 0:02:01]} 16. Nb3 {[%clk 0:02:00]}  Qxa2 {[%clk 0:01:54]} 17. Ra1 {[%clk 0:01:44]}  Qxb2 {[%clk 0:01:54]} 18. Rxa7 {[%clk 0:01:44]}  Bc6 {[%clk 0:01:45]} 19. Nd4 {[%clk 0:01:32]}  Ra8 {[%clk 0:01:43]} 20. Rxa8 {[%clk 0:01:21]}  Rxa8 {[%clk 0:01:43]} 21. Qf3 {[%clk 0:01:16]}  Ra1 {[%clk 0:01:42]} 22. Rxa1 {[%clk 0:01:10]}  Qxa1+ {[%clk 0:01:42]} 23. Kh2 {[%clk 0:00:50]}  h5 {[%clk 0:01:37]} 24. Bf5 {[%clk 0:00:45]}  Qa8 {[%clk 0:01:17]} 25. Qf4 {[%clk 0:00:35]}  Qd8 {[%clk 0:01:14]} 26. Bd3 {[%clk 0:00:29]}  Bd7 {[%clk 0:01:03]} 27. f3 {[%clk 0:00:27]}  g6 {[%clk 0:00:41]} 28. Qd6 {[%clk 0:00:24]}  Kg7 {[%clk 0:00:35]} 29. Bb5 {[%clk 0:00:15]}  Qe8 {[%clk 0:00:35]} 30. Bxd7 {[%clk 0:00:12]}  Qxd7 {[%clk 0:00:35]} 31. Qe5 {[%clk 0:00:10]}  Qe8 {[%clk 0:00:32]} 32. Qg5 {[%clk 0:00:08]}  Qd7 {[%clk 0:00:31]} 33. Qe5 {[%clk 0:00:08]}  b6 {[%clk 0:00:31]} 34. Qb8 {[%clk 0:00:09]}  Qe7 {[%clk 0:00:25]} 35. Qxb6 {[%clk 0:00:09]}  Qe5 {[%clk 0:00:23]} 36. Qb3 {[%clk 0:00:09]}  h4 {[%clk 0:00:23]} 37. f4 {[%clk 0:00:09]}  hxg3+ {[%clk 0:00:22]} 38. Kxg3 {[%clk 0:00:09]}  Qh5 {[%clk 0:00:21]} 39. f5 {[%clk 0:00:02]}  Ne4+ {[%clk 0:00:12]} 40. Kf4 {[%clk 0:00:03]}  Qh2+ {[%clk 0:00:12]} 41. Kg4 {[%clk 0:00:02]}  Qg3# {[%clk 0:00:11]} 0-1


[Site "https://www.chess.com"]

[Event "Titled Tuesday Blitz August 22 Early 2023"]
[White "Postlmayer, Jakob"]
[Black "Elsa167"]
[WhiteFideId "1643622"]
[WhiteElo "2555"]
[BlackElo "2857"]
[Result "0-1"]
[Round "2"]
[TimeControl "180+1"]
[Date "2023.08.22"]
[WhiteClock "0:00:01"]
[BlackClock "0:00:08"]
[Board "50"]

1. d4 {[%clk 0:03:00]}  Nf6 {[%clk 0:02:59]} 2. c4 {[%clk 0:02:59]}  g6 {[%clk 0:03:00]} 3. f3 {[%clk 0:02:59]}  c5 {[%clk 0:02:59]} 4. d5 {[%clk 0:02:59]}  d6 {[%clk 0:02:58]} 5. e4 {[%clk 0:02:59]}  Bg7 {[%clk 0:02:58]} 6. Ne2 {[%clk 0:02:59]}  O-O {[%clk 0:02:58]} 7. Nec3 {[%clk 0:02:58]}  a6 {[%clk 0:02:51]} 8. Be2 {[%clk 0:02:56]}  e6 {[%clk 0:02:49]} 9. a4 {[%clk 0:02:55]}  a5 {[%clk 0:02:45]} 10. O-O {[%clk 0:02:53]}  e5 {[%clk 0:02:44]} 11. g4 {[%clk 0:02:50]}  Kh8 {[%clk 0:02:37]} 12. Na3 {[%clk 0:02:49]}  Ng8 {[%clk 0:02:37]} 13. Nab5 {[%clk 0:02:47]}  Na6 {[%clk 0:02:31]} 14. Be3 {[%clk 0:02:44]}  Bh6 {[%clk 0:02:27]} 15. Qd2 {[%clk 0:02:42]}  Bxe3+ {[%clk 0:02:25]} 16. Qxe3 {[%clk 0:02:43]}  Nc7 {[%clk 0:02:18]} 17. f4 {[%clk 0:02:33]}  Nxb5 {[%clk 0:02:18]} 18. Nxb5 {[%clk 0:02:33]}  Qe7 {[%clk 0:01:39]} 19. fxe5 {[%clk 0:01:34]}  Qxe5 {[%clk 0:01:38]} 20. Qc3 {[%clk 0:01:33]}  Qxc3 {[%clk 0:01:37]} 21. bxc3 {[%clk 0:01:34]}  Ra6 {[%clk 0:01:36]} 22. g5 {[%clk 0:01:24]}  Bd7 {[%clk 0:01:34]} 23. Nc7 {[%clk 0:01:13]}  Ra7 {[%clk 0:01:20]} 24. Kg2 {[%clk 0:01:02]}  b6 {[%clk 0:01:18]} 25. Nb5 {[%clk 0:00:58]}  Bxb5 {[%clk 0:01:18]} 26. cxb5 {[%clk 0:00:57]}  Re7 {[%clk 0:01:19]} 27. Bd3 {[%clk 0:00:55]}  Kg7 {[%clk 0:01:18]} 28. Rf4 {[%clk 0:00:51]}  h6 {[%clk 0:01:10]} 29. h4 {[%clk 0:00:50]}  hxg5 {[%clk 0:01:09]} 30. hxg5 {[%clk 0:00:51]}  Re5 {[%clk 0:01:09]} 31. Rg4 {[%clk 0:00:51]}  f6 {[%clk 0:01:06]} 32. gxf6+ {[%clk 0:00:42]}  Nxf6 {[%clk 0:01:07]} 33. Rf4 {[%clk 0:00:38]}  g5 {[%clk 0:00:50]} 34. Rf3 {[%clk 0:00:33]}  Nxe4 {[%clk 0:00:34]} 35. Rxf8 {[%clk 0:00:26]}  Kxf8 {[%clk 0:00:35]} 36. c4 {[%clk 0:00:27]}  Nf6 {[%clk 0:00:28]} 37. Kf3 {[%clk 0:00:24]}  Kg7 {[%clk 0:00:27]} 38. Rg1 {[%clk 0:00:20]}  Nd7 {[%clk 0:00:10]} 39. Rh1 {[%clk 0:00:19]}  Nf8 {[%clk 0:00:10]} 40. Rg1 {[%clk 0:00:19]}  Kf6 {[%clk 0:00:11]} 41. Rf1 {[%clk 0:00:17]}  Nd7 {[%clk 0:00:10]} 42. Kg4+ {[%clk 0:00:16]}  Kg7 {[%clk 0:00:11]} 43. Bf5 {[%clk 0:00:16]}  Nf6+ {[%clk 0:00:10]} 44. Kxg5 {[%clk 0:00:16]}  Re2 {[%clk 0:00:05]} 45. Be6 {[%clk 0:00:11]}  Ne4+ {[%clk 0:00:05]} 46. Kf4 {[%clk 0:00:09]}  Nd2 {[%clk 0:00:05]} 47. Rg1+ {[%clk 0:00:09]}  Kf6 {[%clk 0:00:05]} 48. Rg8 {[%clk 0:00:09]}  Re4+ {[%clk 0:00:05]} 49. Kg3 {[%clk 0:00:08]}  Nxc4 {[%clk 0:00:04]} 50. Rb8 {[%clk 0:00:08]}  Ke5 {[%clk 0:00:05]} 51. Kf3 {[%clk 0:00:07]}  Kd4 {[%clk 0:00:06]} 52. Rd8 {[%clk 0:00:05]}  Re3+ {[%clk 0:00:06]} 53. Kf4 {[%clk 0:00:05]}  Ra3 {[%clk 0:00:07]} 54. Kf5 {[%clk 0:00:05]}  Rxa4 {[%clk 0:00:07]} 55. Kf6 {[%clk 0:00:05]}  Rb4 {[%clk 0:00:06]} 56. Ra8 {[%clk 0:00:03]}  a4 {[%clk 0:00:06]} 57. Ke7 {[%clk 0:00:04]}  a3 {[%clk 0:00:05]} 58. Kd7 {[%clk 0:00:04]}  Rxb5 {[%clk 0:00:06]} 59. Kc6 {[%clk 0:00:03]}  Ra5 {[%clk 0:00:06]} 60. Rh8 {[%clk 0:00:02]}  a2 {[%clk 0:00:07]} 61. Rh4+ {[%clk 0:00:03]}  Kc3 {[%clk 0:00:07]} 62. Rh3+ {[%clk 0:00:03]}  Kb4 {[%clk 0:00:08]} 63. Rh1 {[%clk 0:00:01]}  a1=Q {[%clk 0:00:08]} 0-1


[Site "https://www.chess.com"]